Workbook

Sheet nernst
D1: reação aA + bB + ze --> cC + dD | P1: R | Q1: 8.3147 | U1: E0 | V1: z | W1: aA | X1: aB | Y1: aC | Z1: aD | AA1: a | AB1: b | AC1: c | AD1: d | AE1: Q | AG1: E
P2: T | Q2: 298 | T2: =Q5 -> F | U2: =Q6 -> 0.401 | V2: =Q7 -> 3 | W2: =Q8 -> 1 | X2: =Q9 -> 0.21 | Y2: =Q10 -> 1e-08 | Z2: =Q11 -> 1 | AA2: =Q12 -> 1 | AB2: =Q13 -> 1 | AC2: =Q14 -> 4 | AD2: =Q15 -> 0 | AE2: =(Y2^AC2*Z2^AD2)/(W2^AA2*X2^AB2) -> 4.761904762e-32 | AG2: =U2-G$16*LN(AE2)/V2 -> 1.01828041
J3: c | L3: d | P3: F | Q3: 96500 | T3: x | U3: x | V3: x | W3: x | X3: x | Y3: x | Z3: x | AA3: x | AB3: x | AC3: x | AD3: x
F4: R | G4: T | I4: aC | K4: aD | T4: reação | U4: E0 | V4: z | W4: aA | X4: aB | Y4: aC | Z4: aD | AA4: a | AB4: b | AC4: c | AD4: d
B5: E | C5: = | D5: E0 | E5: - | H5: ln | P5: reação | Q5: F | AE5: =IF(ISBLANK(T5),"",(Y5^AC5*Z5^AD5)/(W5^AA5*X5^AB5)) ->  | AF5: =IF(ISBLANK(T5),"",T5) ->  | AG5: =IF(ISBLANK(T5),"",U5-G$16*LN(AE5)/V5) -> 
F6: z | G6: F | J6: a | L6: b | P6: E0 | Q6: 0.401 | AE6: =IF(ISBLANK(T6),"",(Y6^AC6*Z6^AD6)/(W6^AA6*X6^AB6)) ->  | AF6: =IF(ISBLANK(T6),"",T6) ->  | AG6: =IF(ISBLANK(T6),"",U6-G$16*LN(AE6)/V6) -> 
I7: aA | K7: aB | P7: z | Q7: 3 | AE7: =IF(ISBLANK(T7),"",(Y7^AC7*Z7^AD7)/(W7^AA7*X7^AB7)) ->  | AG7: =IF(ISBLANK(T7),"",U7-G$16*LN(AE7)/V7) -> 
P8: aA | Q8: 1 | AE8: =IF(ISBLANK(T8),"",(Y8^AC8*Z8^AD8)/(W8^AA8*X8^AB8)) ->  | AG8: =IF(ISBLANK(T8),"",U8-G$16*LN(AE8)/V8) -> 
J9: =Q14 -> 4 | L9: =Q15 -> 0 | P9: aB | Q9: 0.21 | AE9: =IF(ISBLANK(T9),"",(Y9^AC9*Z9^AD9)/(W9^AA9*X9^AB9)) ->  | AG9: =IF(ISBLANK(T9),"",U9-G$16*LN(AE9)/V9) -> 
F10: =Q1 -> 8.3147 | G10: =Q2 -> 298 | I10: =Q10 -> 1e-08 | K10: =Q11 -> 1 | P10: aC | Q10: 1e-08
B11: E | C11: = | D11: =Q6 -> 0.401 | E11: - | H11: ln | M11: = | P11: aD | Q11: 1
F12: =Q7 -> 3 | G12: =Q3 -> 96500 | J12: =Q12 -> 1 | L12: =Q13 -> 1 | P12: a | Q12: 1
I13: =Q8 -> 1 | K13: =Q9 -> 0.21 | P13: b | Q13: 1
P14: c | Q14: 4
P15: d | Q15: 0
C16: = | D16: =D11 -> 0.401 | E16: - | F16: =1/F12 -> 0.3333333333 | G16: =F10*G10/G12 -> 0.0256764829 | H16: ln | I16: =(I10^J9)*(K10^L9)/((I13^J12)*(K13^L12)) -> 4.761904762e-32 | J16: = | K16: =D16-F16*G16*LN(I16) -> 1.01828041 | L16: V
G18: 2.302585093
C20: = | D20: =D16 -> 0.401 | E20: - | F20: =F16 -> 0.3333333333 | G20: =G16*G18 -> 0.05912228677 | H20: log | I20: =I16 -> 4.761904762e-32 | J20: = | K20: =D20-F20*G20*LOG(I20) -> 1.01828041 | L20: V
K26: AO APERTAR O BOTÃO, OS DADOS SÃO SALVOS EM NOVA LINHA AMARELA
K28: O BOTÃO SÓ FUNCIONA SE VOCÊ HABILITAR MACROS (aparece solicitação ao abrir a planilha)
K30: ALTERAR APENAS OS VALORES NAS CÉLULAS VERDES - O RESTO É AUTOMÁTICO

Sheet tafel
A2: REAÇÃO A | B2: Eequilíbrio | C2: 0.51
B3: i0 | C3: =10^-7 -> 1e-07 | E3: retas vermelhas
B4: banódico | C4: 0.1
B5: bcatódico | C5: -0.15
A7: curva anódica | B7: i | C7: b | D7: i/i0 | E7: h | F7: E | G7: log i | H7: E
A8: ponto 1 | B8: =10^-7 -> 1e-07 | C8: =C$4 -> 0.1 | D8: =B8/C$3 -> 1 | E8: =C8*LOG(D8) -> 0 | F8: =C$2+E8 -> 0.51 | G8: =LOG(B8) -> -7 | H8: =F8 -> 0.51
A9: ponto 2 | B9: =10^-2 -> 0.01 | C9: =C$4 -> 0.1 | D9: =B9/C$3 -> 100000 | E9: =C9*LOG(D9) -> 0.5 | F9: =C$2+E9 -> 1.01 | G9: =LOG(B9) -> -2 | H9: =F9 -> 1.01
A11: curva anódica | B11: i | C11: b | D11: i/i0 | E11: h | F11: E | G11: log i | H11: E
A12: ponto 1 | B12: =10^-7 -> 1e-07 | C12: =C$5 -> -0.15 | D12: =B12/C$3 -> 1 | E12: =C12*LOG(D12) -> 0 | F12: =C$2+E12 -> 0.51 | G12: =LOG(B12) -> -7 | H12: =F12 -> 0.51
A13: ponto 2 | B13: =10^0 -> 1 | C13: =C$5 -> -0.15 | D13: =B13/C$3 -> 10000000 | E13: =C13*LOG(D13) -> -1.05 | F13: =C$2+E13 -> -0.54 | G13: =LOG(B13) -> 0 | H13: =F13 -> -0.54
A16: REAÇÃO B | B16: Eequilíbrio | C16: 0.35
B17: i0 | C17: =10^-7 -> 1e-07
B18: banódico | C18: 0.01 | E18: retas verdes
B19: bcatódico | C19: -0.015
A21: curva anódica | B21: i | C21: b | D21: i/i0 | E21: h | F21: E | G21: log i | H21: E
A22: ponto 1 | B22: =10^-7 -> 1e-07 | C22: =C$18 -> 0.01 | D22: =B22/C$17 -> 1 | E22: =C22*LOG(D22) -> 0 | F22: =C$16+E22 -> 0.35 | G22: =LOG(B22) -> -7 | H22: =F22 -> 0.35
A23: ponto 2 | B23: 1 | C23: =C$18 -> 0.01 | D23: =B23/C$17 -> 10000000 | E23: =C23*LOG(D23) -> 0.07 | F23: =C$16+E23 -> 0.42 | G23: =LOG(B23) -> 0 | H23: =F23 -> 0.42
L24: ALTERAR APENAS OS VALORES NAS CÉLULAS VERDES - O RESTO É AUTOMÁTICO
A25: curva anódica | B25: i | C25: b | D25: i/i0 | E25: h | F25: E | G25: log i | H25: E
A26: ponto 1 | B26: =10^-7 -> 1e-07 | C26: =C$19 -> -0.015 | D26: =B26/C$17 -> 1 | E26: =C26*LOG(D26) -> 0 | F26: =C$16+E26 -> 0.35 | G26: =LOG(B26) -> -7 | H26: =F26 -> 0.35
A27: ponto 2 | B27: =10^-3 -> 0.001 | C27: =C$19 -> -0.015 | D27: =B27/C$17 -> 10000 | E27: =C27*LOG(D27) -> -0.06 | F27: =C$16+E27 -> 0.29 | G27: =LOG(B27) -> -3 | H27: =F27 -> 0.29
D30: log i | E30: E | H30: definir
B31: cruzamento | C31: log i | D31: =(C5*LOG(C3)-C18*LOG(C17)+C16-C2)/(C5-C18) -> -6 | E31: =H31 -> 0.2 | G31: mínimo no gráfico: | H31: 0.2
D32: =D31 -> -6 | E32: =E33 -> 0.36
C33: E | D33: =H33 -> -9 | E33: =C2+C5*D31 - C5*LOG(C3) -> 0.36 | G33: mínimo no gráfico: | H33: -9
D34: =D31 -> -6 | E34: =E33 -> 0.36

Sheet potenciais
